fUST/lending_fUST_20240309
["ID","MTS","AMOUNT","RATE_DAILY","PERIOD"]
[317866925,1709974236023,-2168.9,0.00022898,2]
[317866926,1709974236033,-2398.84,0.00022898,2]
[317866927,1709974236043,-2398.84,0.00022898,2]
[317866928,1709974236053,-510.45846541,0.00022898,2]
[317866943,1709974238540,-155.12720431,0.00020282,2]
[317866945,1709974238551,-500.0,0.00022739,2]
[317866947,1709974238560,-500.0,0.00022739,2]
[317866949,1709974238570,-500.0,0.00022897,2]
[317866951,1709974238579,-500.0,0.00022897,2]
[317866954,1709974238589,-1888.38153459,0.00022898,2]
[317866956,1709974238599,-2398.84,0.00022898,2]
[317866958,1709974238608,-2398.84,0.00022898,2]
[317866960,1709974238617,-1475.26245598,0.00022898,2]
[317867012,1709974239314,-470.94318688,0.00022898,2]
[317867014,1709974239326,-452.63435714,0.00022898,2]
[317867016,1709974239336,-500.0,0.00022898,2]
[317867018,1709974239345,-500.0,0.00022898,2]
[317867020,1709974239355,-500.0,0.00022898,2]
[317867022,1709974239364,-500.0,0.00022898,2]
[317867024,1709974239373,-1000.0,0.00022898,5]
[317867027,1709974239383,-26612.34691194,0.00022899,2]
[317867561,1709974244926,-500.0,0.00022898,2]
[317867563,1709974244936,-346.38666015,0.00022898,2]
[317867565,1709974244945,-331.82858331,0.00022899,2]
[317867571,1709974244997,-11809.12270989,0.00022899,2]
[317868027,1709974249772,-500.0,0.00022739,2]
[317868029,1709974249781,-500.0,0.00022897,2]
[317868031,1709974249790,-500.0,0.00022898,2]
[317868033,1709974249799,-500.0,0.00022898,2]
[317868035,1709974249808,-500.0,0.00022898,2]
[317868037,1709974249818,-500.0,0.00022898,2]
[317868039,1709974249827,-511.73430442,0.00022898,2]
[317868041,1709974249836,-14090.68849155,0.00022899,2]
[317868043,1709974249854,-3126.52862964,0.00022899,2]
[317869013,1709975432809,-450.47000349,0.00020757,2]
[317869043,1709975438675,-892.67440871,0.00020756,2]
[317869609,1709975444500,-1169.0893476,0.00020756,2]
[317869611,1709975444514,-5810.29641584,0.00020756,2]
[317869615,1709975444667,400.0,0.0002,2]
[317869849,1709975446945,-611.25897612,0.00020756,2]
[317869851,1709975446955,-429.16778282,0.00020756,2]
[317869853,1709975446964,-155.13030946,0.00020756,2]
[317869855,1709975446973,-1431.18756278,0.00020757,2]
[317869856,1709975446982,-1379.25189905,0.00020779,2]
[317869857,1709975446992,-305.459075,0.00020927,2]
[317869858,1709975447001,-300.0,0.00021,2]
[317869859,1709975447010,-17354.55026388,0.00021423,2]
[317871292,1709975462733,359.9047522,0.00019323,2]
[317876170,1709975763954,239.93650146,0.00019323,2]
[317876174,1709976065287,159.95766764,0.00019323,2]
[317876175,1709976094348,155.19790723,0.00019323,2]
[317876176,1709976154862,15942.1268091,0.00019323,2]
[317876177,1709976172827,1150.89816645,0.00019323,2]
[317876294,1709976638006,-262.3827165,0.00020419,2]
[317876295,1709976638018,-166.78506632,0.00020419,2]
[317876296,1709976638027,-1881.65756627,0.00020419,2]
[317876297,1709976638036,-155.14894299,0.00020419,2]
[317876298,1709976638046,-957.28758865,0.0002042,2]
[317876299,1709976638055,-8483.31914827,0.00020519,2]
[317876300,1709976638064,-1771.76746028,0.0002052,2]
[317876301,1709976638073,-2407.44317891,0.0002053,2]
[317876321,1709976640097,-724.06382818,0.0002053,2]
[317876366,1709976643062,-2445.67481891,0.0002053,2]
[317876369,1709976643077,-225.335,0.00020566,2]
[317876371,1709976643086,-225.336,0.00020566,2]
[317876373,1709976643096,-225.336,0.00020566,2]
[317876375,1709976643105,-225.336,0.00020566,2]
[317876377,1709976643114,-225.336,0.00020566,2]
[317876378,1709976643124,-172.10825737,0.00020895,2]
[317876379,1709976643133,-822.435,0.00020995,2]
[317876380,1709976643143,-822.436,0.00020995,2]
[317876381,1709976643152,-822.436,0.00020995,2]
[317876382,1709976643161,-822.436,0.00020995,2]
[317876383,1709976643170,-15.79492372,0.00020995,2]
[317876384,1709976643182,-806.64107628,0.00020995,2]
[317876385,1709976643191,-300.0,0.00021,2]
[317876386,1709976643201,-3037.6593102,0.00021068,2]
[317876387,1709976643210,-300.0,0.000212,2]
[317876388,1709976643219,-164.232121,0.00021412,2]
[317876389,1709976643228,-300.0,0.000215,2]
[317876390,1709976643238,-622.94650658,0.00021745,2]
[317876391,1709976643246,-153.0,0.000218,2]
[317876392,1709976643255,-172.10825735,0.00021898,2]
[317876393,1709976643265,-200.24,0.000219,2]
[317876394,1709976643274,-153.0,0.00021918,2]
[317876395,1709976643283,-218.0,0.00022,2]
[317876396,1709976643292,-72.1727286,0.00022,2]
[317877587,1709976667893,392.72736874,0.00018968,2]
[317877589,1709976969004,261.81824583,0.00018968,2]
[317877591,1709977216539,3255.0,0.0002002,12]
[317877594,1709977270116,174.54549722,0.00018968,2]
[317877658,1709977818852,200.0,0.0002,2]
[317878430,1709977840235,-6480.18862058,0.0002069,2]
[317878490,1709977840763,-2003.13052769,0.0002069,2]
[317878492,1709977840773,-1881.65756627,0.0002069,2]
[317878494,1709977840782,-429.16778282,0.00020691,2]
[317878496,1709977840791,-2597.84072336,0.00020691,2]
[317878498,1709977840801,-1771.76746028,0.00020691,2]
[317878500,1709977840810,-1606.48981594,0.00020692,2]
[317878502,1709977840820,-155.15204901,0.00020692,2]
[317878504,1709977840829,-24890.0,0.00020702,2]
[317878506,1709977840838,-264.65691,0.00020741,2]
[317878508,1709977840848,-181.245409,0.00021232,2]
[317878509,1709977840858,-647.46846065,0.00021665,2]
[317878511,1709977840868,-1596.43272506,0.00022,2]
[317878513,1709977840877,-300.0,0.00022,2]
[317878515,1709977840886,-218.0,0.00022192,2]
[317878517,1709977840895,-344.3940014,0.00022222,3]
[317878519,1709977840905,-201.57935144,0.000223,2]
[317878521,1709977840914,-219.63921983,0.000227,4]
[317878523,1709977840923,-500.0,0.00022739,2]
[317878525,1709977840932,-151.0,0.00022739,2]
[317878527,1709977840941,-502.92702341,0.00022739,2]
[317878529,1709977840951,-500.0,0.00022739,2]
[317878531,1709977840960,-500.0,0.00022739,2]
[317878533,1709977840969,-500.0,0.00022739,2]
[317878535,1709977840980,-500.0,0.00022739,2]
[317878538,1709977840989,-500.0,0.00022739,2]
[317878539,1709977840999,-500.0,0.00022739,2]
[317878541,1709977841008,-500.0,0.00022739,2]
[317878543,1709977841018,-500.0,0.00022739,2]
[317878545,1709977841027,-500.0,0.00022739,2]
[317878547,1709977841037,-1703.53,0.00022739,2]
[317878549,1709977841046,-500.0,0.00022739,2]
[317878551,1709977841055,-500.0,0.00022739,2]
[317878553,1709977841066,-500.0,0.00022739,2]
[317878555,1709977841076,-500.0,0.00022739,2]
[317878557,1709977841085,-621.37342303,0.00022748,2]
[317878559,1709977841094,-362.95452614,0.00022798,2]
[317878561,1709977841104,-151.0,0.00022896,2]
[317878563,1709977841114,-641.51931963,0.00022896,2]
[317878565,1709977841124,-500.0,0.00022896,2]
[317878567,1709977841133,-500.0,0.00022896,2]
[317878569,1709977841142,-500.0,0.00022896,2]
[317878571,1709977841151,-500.0,0.00022896,2]
[317878573,1709977841161,-159.85734424,0.00022896,2]
[317878575,1709977841170,-500.0,0.00022896,2]
[317878577,1709977841180,-365.19507416,0.00022896,2]
[317878579,1709977841189,-500.0,0.00022896,2]
[317878581,1709977841199,-232.49129884,0.00022896,2]
[317878583,1709977841208,-500.0,0.00022896,2]
[317878585,1709977841224,-14.10536475,0.00022896,2]
[317887802,1709979032469,-155.15204901,0.00020262,2]
[317887803,1709979032478,-429.16778282,0.00020262,2]
[317887804,1709979032488,-178.693053,0.00020263,2]
[317887805,1709979032497,-218.46610751,0.00020573,2]
[317887806,1709979032506,-1881.65756627,0.00020574,2]
[317887807,1709979032516,-2390.17309724,0.00020575,2]
[317887840,1709979038305,-207.66762612,0.00020575,2]
[317887842,1709979038314,-428.36227766,0.00020576,2]
[317887848,1709979038365,-988.91883785,0.00020576,2]
[317887850,1709979038377,-354.48634477,0.00020576,2]
[317887852,1709979038386,-8483.31914827,0.00020578,2]
[317887854,1709979038395,-2351.9036548,0.00020584,2]
[317887856,1709979038404,-2211.68284766,0.00020605,2]
[317888055,1709979040399,-1716.28492884,0.00020605,2]
[317888057,1709979040409,-307.08961391,0.00020639,2]
[317888059,1709979040418,-172.10825735,0.00020717,2]
[317888061,1709979040427,-151.34328613,0.00020757,2]
[317888063,1709979040437,-238.7,0.000219,2]
[317888065,1709979040447,-379.0,0.00022,2]
[317888067,1709979040456,-1668.60545366,0.00022,2]
[317888069,1709979040465,-379.0,0.00022192,2]
[317888071,1709979040475,-379.0,0.00022466,2]
[317888073,1709979040484,-500.0,0.00022739,2]
[317888075,1709979040495,-208.63969349,0.00022739,2]
[317888076,1709979040504,-500.0,0.00022739,2]
[317888078,1709979040514,-379.0,0.0002274,2]
[317888080,1709979040523,-3084.84702889,0.000228,2]
[317888082,1709979040533,-1631.96,0.00022894,2]
[317888084,1709979040542,-561.337233,0.00022895,2]
[317888086,1709979040552,-500.0,0.00022895,2]
[317888088,1709979040561,-500.0,0.00022895,2]
[317888090,1709979040571,-500.0,0.00022895,2]
[317888092,1709979040580,-501.66245363,0.00022895,2]
[317888093,1709979040589,-500.0,0.00022895,2]
[317888095,1709979040600,-500.0,0.00022895,2]
[317888097,1709979040609,-500.0,0.00022895,2]
[317888099,1709979040623,-500.0,0.00022895,2]
[317888101,1709979040633,-151.0,0.00022895,2]
[317888103,1709979040642,-151.0,0.00022895,2]
[317888105,1709979040653,-500.0,0.00022895,2]
[317888107,1709979040663,-500.0,0.00022895,2]
[317888109,1709979040672,-823.05,0.00022895,2]
[317888111,1709979040681,-823.05,0.00022895,2]
[317888112,1709979040693,-500.0,0.00022895,2]
[317888114,1709979040703,-500.0,0.00022895,2]
[317888116,1709979040713,-500.0,0.00022895,2]
[317888118,1709979040725,-500.0,0.00022895,2]
[317888120,1709979040737,-500.0,0.00022895,2]
[317888122,1709979040747,-500.0,0.00022895,2]
[317888124,1709979040757,-151.0,0.00022895,2]
[317888126,1709979040768,-151.0,0.00022895,2]
[317888128,1709979040777,-499.6797313,0.00022895,2]
[317888130,1709979040786,-1631.96,0.00022895,2]
[317888132,1709979040795,-812.0,0.00022895,2]
[317888133,1709979040805,-812.0,0.00022895,2]
[317888135,1709979040814,-1487.61,0.00022895,2]
[317888137,1709979040823,-1487.61,0.00022895,2]
[317888139,1709979040832,-151.0,0.00022896,2]
[317888141,1709979040842,-277.704761,0.00022896,2]
[317888143,1709979040854,-500.89658718,0.00022896,2]
[317888145,1709979040863,-40935.77226738,0.00022896,2]
[317888147,1709979040872,-516.04717866,0.00022896,2]
[317888149,1709979040882,-500.0,0.00022896,2]
[317888151,1709979040891,-151.0,0.00022896,2]
[317888153,1709979040900,-151.0,0.00022896,2]
[317888154,1709979040909,-151.0,0.00022896,2]
[317888156,1709979040919,-1631.96,0.00022896,2]
[317888158,1709979040928,-1487.61,0.00022896,2]
[317888160,1709979040937,-500.0,0.00022896,2]
[317888162,1709979040946,-500.0,0.00022896,2]
[317888164,1709979040955,-500.0,0.00022896,2]
[317888166,1709979040963,-342.0,0.00022896,2]
[317888168,1709979040973,-500.0,0.00022896,2]
[317888170,1709979040983,-500.0,0.00022896,2]
[317888171,1709979040992,-500.0,0.00022896,2]
[317888173,1709979041001,-500.0,0.00022896,2]
[317888175,1709979041011,-500.0,0.00022896,2]
[317888177,1709979041020,-500.0,0.00022896,2]
[317888179,1709979041029,-500.0,0.00022896,2]
[317888181,1709979041038,-500.0,0.00022896,2]
[317888183,1709979041046,-500.0,0.00022896,2]
[317888184,1709979041056,-500.0,0.00022896,2]
[317888186,1709979041065,-530.0,0.00022896,2]
[317888189,1709979041077,-500.0,0.00022896,2]
[317888190,1709979041086,-500.0,0.00022896,2]
[317888192,1709979041098,-500.0,0.00022896,2]
[317888194,1709979041107,-500.0,0.00022896,2]
[317888196,1709979041116,-500.0,0.00022896,2]
[317888198,1709979041125,-300.0,0.00022896,2]
[317888200,1709979041135,-500.0,0.00022896,2]
[317888202,1709979041143,-500.0,0.00022896,2]
[317888204,1709979041152,-239.78289173,0.00022896,2]
[317888206,1709979041162,-500.0,0.00022896,2]
[317888208,1709979041170,-427.72987432,0.00022896,2]
[317888209,1709979041179,-500.0,0.00022896,2]
[317888211,1709979041189,-500.0,0.00022896,2]
[317888213,1709979041198,-500.0,0.00022896,2]
[317888215,1709979041208,-365.61038616,0.00022896,2]
[317888217,1709979041217,-184.9223812,0.00022896,2]
[317888219,1709979041227,-500.0,0.00022896,2]
[317888221,1709979041237,-500.0,0.00022896,2]
[317888223,1709979041247,-500.0,0.00022896,2]
[317888225,1709979041257,-500.0,0.00022897,2]
[317888226,1709979041267,-500.0,0.00022897,2]
[317888228,1709979041277,-500.0,0.00022897,2]
[317888231,1709979041292,-284.24,0.00022897,2]
[317888232,1709979041301,-500.0,0.00022897,2]
[317888234,1709979041311,-500.0,0.00022897,2]
[317888236,1709979041321,-500.0,0.00022897,2]
[317888238,1709979041331,-500.0,0.00022897,2]
[317888240,1709979041339,-500.0,0.00022897,2]
[317888241,1709979041348,-500.0,0.00022897,2]
[317888243,1709979041357,-637.73749432,0.00022897,2]
[317888245,1709979041367,-151.0,0.00022897,2]
[317888247,1709979041376,-151.0,0.00022897,2]
[317888258,1709979041471,-151.0,0.00022897,2]
[317888260,1709979041480,-151.0,0.00022897,2]
[317888261,1709979041489,-151.0,0.00022897,2]
[317888263,1709979041499,-398.12,0.00022897,2]
[317888265,1709979041508,-823.05,0.00022897,2]
[317888267,1709979041518,-823.05,0.00022897,2]
[317888269,1709979041527,-823.05,0.00022897,2]
[317888271,1709979041536,-823.05,0.00022897,2]
[317888273,1709979041545,-823.05,0.00022897,2]
[317888275,1709979041555,-500.0,0.00022897,2]
[317888277,1709979041564,-500.0,0.00022897,2]
[317888279,1709979041573,-500.0,0.00022897,2]
[317888281,1709979041581,-500.0,0.00022897,2]
[317888283,1709979041590,-500.0,0.00022897,2]
[317888284,1709979041601,-500.0,0.00022897,2]
[317888286,1709979041610,-500.0,0.00022897,2]
[317888288,1709979041621,-500.0,0.00022897,2]
[317888290,1709979041631,-500.0,0.00022897,2]
[317888292,1709979041639,-500.0,0.00022897,2]
[317888294,1709979041649,-500.0,0.00022897,2]
[317888296,1709979041658,-500.0,0.00022897,2]
[317888298,1709979041667,-500.0,0.00022897,2]
[317888300,1709979041677,-500.0,0.00022897,2]
[317888302,1709979041686,-151.0,0.00022897,2]
[317888304,1709979041697,-151.0,0.00022897,2]
[317888306,1709979041706,-151.0,0.00022897,2]
[317888308,1709979041715,-262.577079,0.00022897,2]
[317888310,1709979041726,-1631.96,0.00022897,2]
[317888311,1709979041735,-1631.96,0.00022897,2]
[317888313,1709979041744,-1631.96,0.00022897,2]
[317888315,1709979041753,-1631.96,0.00022897,2]
[317888317,1709979041764,-1631.96,0.00022897,2]
[317888319,1709979041775,-812.0,0.00022897,2]
[317888321,1709979041784,-812.0,0.00022897,2]
[317888323,1709979041792,-812.0,0.00022897,2]
[317888325,1709979041801,-812.0,0.00022897,2]
[317888327,1709979041810,-812.0,0.00022897,2]
[317888329,1709979041819,-1487.61,0.00022897,2]
[317888331,1709979041828,-1487.61,0.00022897,2]
[317888332,1709979041837,-1487.61,0.00022897,2]
[317888334,1709979041848,-1487.61,0.00022897,2]
[317888336,1709979041858,-250.0,0.00022898,14]
[317888338,1709979041867,-133404.51046286,0.00022898,2]
[317888341,1709979041880,-6206.4,0.00022898,2]
[317888343,1709979041892,-378.79359255,0.00022898,2]
[317888345,1709979041903,-261.546,0.00022898,2]
[317889006,1709979048658,-39723.03874916,0.00022898,2]
[317890204,1709979183905,3942.81332566,0.0002,2]
[317890205,1709979217840,2000.0,0.0002,2]
[317890214,1709979764865,24890.0,0.00019593,2]
[317890215,1709979964056,10000.0,0.00019,2]
[317890216,1709979982915,377.90278509,0.000189,2]
[317890220,1709980100880,155.12240184,0.000189,2]
[317890278,1709980232686,-155.11633725,0.00020516,2]
[317890280,1709980232695,-429.16778282,0.00020517,2]
[317890282,1709980232704,-1881.65756627,0.00020517,2]
[317890284,1709980232713,-2631.74692434,0.00020518,2]
[317890287,1709980232748,-5851.57222393,0.00020518,2]
[317890290,1709980232757,-1407.66418145,0.00020518,2]
[317890448,1709980239511,-218.46610751,0.00020515,2]
[317890449,1709980239520,-364.10327883,0.00020518,2]
[317890452,1709980239530,-1606.48981594,0.00020519,2]
[317890453,1709980239540,-1810.94204562,0.00020575,2]
[317890879,1709980244140,-50565.93927069,0.00020575,2]
[317890881,1709980244150,-1500.0,0.00020708,2]
[317890883,1709980244159,-1500.0,0.00020842,2]
[317890885,1709980244169,-1500.0,0.00020976,2]
[317890887,1709980244178,-1500.0,0.0002111,2]
[317890889,1709980244187,-1500.0,0.00021244,2]
[317890891,1709980244196,-1500.0,0.00021377,2]
[317890893,1709980244206,-1500.0,0.00021511,2]
[317890895,1709980244215,-1500.0,0.00021645,2]
[317890897,1709980244225,-1500.0,0.00021779,2]
[317890899,1709980244235,-1500.0,0.00021913,2]
[317890901,1709980244244,-186.0,0.00022,2]
[317890903,1709980244253,-1500.0,0.00022047,2]
[317890905,1709980244262,-153.0,0.00022055,2]
[317890907,1709980244272,-153.0,0.00022055,2]
[317890909,1709980244281,-153.0,0.00022055,2]
[317890911,1709980244290,-1500.0,0.00022181,2]
[317890913,1709980244300,-153.0,0.00022192,2]
[317890915,1709980244310,-153.0,0.00022192,2]
[317890917,1709980244319,-153.0,0.00022192,2]
[317890919,1709980244329,-153.0,0.00022192,2]
[317890921,1709980244339,-200.9747837,0.00022192,2]
[317890923,1709980244348,-153.0,0.00022192,2]
[317890925,1709980244359,-153.0,0.00022192,2]
[317890927,1709980244369,-153.0,0.00022192,2]
[317890929,1709980244379,-200.9747837,0.00022192,2]
[317890931,1709980244388,-153.0,0.00022192,2]
[317890933,1709980244398,-200.9747837,0.00022192,2]
[317890935,1709980244407,-153.0,0.00022192,2]
[317890937,1709980244416,-153.0,0.00022192,2]
[317890939,1709980244425,-200.9747837,0.00022192,2]
[317890941,1709980244434,-153.0,0.00022192,2]
[317890943,1709980244443,-200.9747837,0.00022192,2]
[317890945,1709980244452,-153.0,0.00022192,2]
[317890947,1709980244461,-153.0,0.00022192,2]
[317890949,1709980244470,-200.624508,0.00022192,2]
[317890951,1709980244479,-203.312824,0.000222,2]
[317890953,1709980244488,-1500.0,0.00022315,2]
[317890955,1709980244497,-1500.0,0.00022449,2]
[317890957,1709980244507,-1500.0,0.00022583,2]
[317890959,1709980244516,-237.473599,0.00022687,2]
[317890961,1709980244525,-159.532693,0.00022687,2]
[317890963,1709980244534,-1500.0,0.00022717,2]
[317890965,1709980244543,-151.0,0.00022739,2]
[317890967,1709980244553,-151.0,0.00022739,2]
[317890969,1709980244562,-355.58697149,0.00022739,2]
[317890971,1709980244571,-500.24017723,0.00022739,2]
[317890973,1709980244580,-500.0,0.00022739,2]
[317890975,1709980244589,-500.0,0.00022739,2]
[317890977,1709980244599,-500.0,0.00022739,2]
[317890979,1709980244609,-500.0,0.00022739,2]
[317890981,1709980244618,-500.0,0.00022739,2]
[317890983,1709980244627,-584.97811089,0.00022739,2]
[317890985,1709980244636,-603.93,0.00022739,2]
[317890987,1709980244646,-603.93,0.00022739,2]
[317890989,1709980244655,-500.0,0.00022739,2]
[317890991,1709980244664,-500.0,0.00022739,2]
[317890993,1709980244674,-500.0,0.00022739,2]
[317890995,1709980244683,-500.0,0.00022739,2]
[317890997,1709980244692,-1095.39,0.00022739,2]
[317890999,1709980244701,-1095.39,0.00022739,2]
[317891001,1709980244710,-1087.97,0.00022739,2]
[317891003,1709980244720,-1087.97,0.00022739,2]
[317891005,1709980244729,-575.17,0.00022739,2]
[317891007,1709980244738,-575.17,0.00022739,2]
[317891009,1709980244748,-500.0,0.0002285,2]
[317891011,1709980244757,-575.17,0.0002285,2]
[317891013,1709980244766,-1500.0,0.00022851,2]
[317891015,1709980244775,-193.30921019,0.00022894,2]
[317891017,1709980244785,-500.0,0.00022894,2]
[317891019,1709980244794,-500.0,0.00022894,2]
[317891021,1709980244804,-458.0,0.00022894,2]
[317891023,1709980244813,-200.0,0.00022894,2]
[317891025,1709980244823,-500.0,0.00022894,2]
[317891027,1709980244833,-170.0,0.00022894,2]
[317891029,1709980244845,-500.0,0.00022894,2]
[317891031,1709980244858,-500.0,0.00022894,2]
[317891033,1709980244869,-443.04453903,0.00022894,2]
[317891036,1709980244880,-222.93960144,0.00022894,2]
[317891038,1709980244890,-1095.39,0.00022896,2]
[317891039,1709980244900,-1087.97,0.00022896,2]
[317891041,1709980244910,-500.0,0.00022897,2]
[317891044,1709980244919,-603.93,0.00022897,2]
[317891046,1709980244929,-5143.96313173,0.00022898,2]
[317891048,1709980244941,-151.0,0.00022899,2]
[317891050,1709980244952,-500.0,0.00022899,2]
[317891052,1709980244962,-575.17,0.00022899,2]
[317891054,1709980244973,-9699.9758839,0.000229,14]
[317891056,1709980244983,-10513.07057283,0.000229,2]
[317891058,1709980244996,-3701.23531433,0.000229,2]
[317891060,1709980245008,-306.02621012,0.000229,2]
[317891063,1709980245019,-4410.0,0.000229,2]
[317891065,1709980245030,-12126.32917348,0.000229,2]
[317891067,1709980245043,-4859.77026907,0.000229,2]
[317891547,1709980249785,-616.46971598,0.000229,2]
[317892313,1709980607710,151.0,0.00027,120]
[317892403,1709981433203,-155.07443573,0.00020352,2]
[317892404,1709981433213,-186.43811292,0.00020352,2]
[317892405,1709981433222,-218.46610751,0.00020352,2]
[317892406,1709981433232,-325.05437374,0.00020352,2]
[317892407,1709981433241,-8483.31914827,0.00020352,2]
[317892408,1709981433251,-1771.76746028,0.00020353,2]
[317892409,1709981433260,-1881.65756627,0.00020353,2]
[317892410,1709981433269,-429.16778282,0.00020354,2]
[317892411,1709981433279,-369.0,0.00020354,2]
[317892413,1709981433289,-294.73459333,0.00020355,2]
[317892414,1709981433299,-1606.48981594,0.00020356,2]
[317892415,1709981433308,-2377.8195855,0.00020368,2]
[317892416,1709981433322,-5797.48554299,0.00020799,2]
[317892417,1709981433331,-151.0,0.00022739,2]
[317892418,1709981433342,-151.0,0.00022739,2]
[317892419,1709981433353,-10000.0,0.0002289,14]
[317892420,1709981433363,-151.0,0.00022896,2]
[317892421,1709981433373,-331.82858331,0.00022899,2]
[317892422,1709981433383,-1051.93,0.00022899,2]
[317892423,1709981433396,-93977.38706913,0.000229,2]
[317892424,1709981433409,-72888.17537447,0.000229,2]
[317892452,1709981438912,-456.3108058,0.000229,2]
[317892549,1709981443861,-4869.17523225,0.000229,2]
[317892550,1709981443873,-716.78564171,0.000229,2]
[317893649,1709982116160,-262.73004163,0.00020777,7]
[317893650,1709982116188,-5940.76995837,0.000226,20]
[317893651,1709982119081,8842.7011331,0.00019941,2]
[317893724,1709982631993,-246.0,0.00020482,2]
[317893726,1709982632003,-1771.76746028,0.00020483,2]
[317893728,1709982632012,-1348.73667178,0.00020484,2]
[317894348,1709982638271,-429.16778282,0.00020481,2]
[317894350,1709982638281,-155.03720893,0.00020481,2]
[317894352,1709982638291,-257.75314416,0.00020484,2]
[317894354,1709982638301,-218.46610751,0.00020485,2]
[317894356,1709982638310,-1165.55137108,0.00020485,2]
[317894358,1709982638322,-10748.05771109,0.00020485,2]
[317894360,1709982638331,-8483.31914827,0.00020485,2]
[317894363,1709982638341,-1881.65756627,0.00020486,2]
[317894365,1709982638350,-385.7964045,0.000205,2]
[317894368,1709982638360,-206.38897792,0.00021,2]
[317894371,1709982638370,-2094.82865114,0.00022,2]
[317894373,1709982638379,-4059.23004163,0.0002286,10]
[317894376,1709982638388,-1008.1,0.00022898,2]
[317894379,1709982638397,-500.0,0.00022899,2]
[317894381,1709982638407,-514.15724835,0.00022899,2]
[317894384,1709982638416,-500.0,0.00022899,2]
[317894387,1709982638425,-500.0,0.00022899,2]
[317894389,1709982638434,-500.0,0.00022899,2]
[317894392,1709982638446,-500.0,0.00022899,2]
[317894393,1709982638456,-500.0,0.00022899,2]
[317894396,1709982638465,-151.0,0.00022899,2]
[317894398,1709982638475,-500.0,0.00022899,2]
[317894400,1709982638484,-500.0,0.00022899,2]
[317894401,1709982638493,-500.0,0.00022899,2]
[317894403,1709982638503,-92.46425083,0.00022899,2]
[317894561,1709982640015,-0.03300883,0.00022899,2]
[317894563,1709982640026,-407.50274034,0.00022899,2]
[317894565,1709982640035,-500.0,0.00022899,2]
[317894567,1709982640044,-528.44,0.00022899,2]
[317894569,1709982640053,-1553.51,0.00022899,2]
[317894571,1709982640062,-500.0,0.00022899,2]
[317894573,1709982640071,-500.0,0.00022899,2]
[317894575,1709982640080,-64317.90915169,0.000229,2]
[317894855,1709982643005,-155.03720893,0.00020483,2]
[317894857,1709982643015,-1881.65756627,0.00020484,2]
[317894859,1709982643025,-3908.76311688,0.000229,2]
[317895338,1709982648047,-1572.50962182,0.000229,2]
[317897652,1709983424999,-1881.65756627,0.00020766,2]
[317897653,1709983425030,-683.91740718,0.00020767,2]
[317897654,1709983425042,-1087.8500531,0.00020767,2]
[317897655,1709983425051,-155.08529691,0.00020767,2]
[317897656,1709983425060,-429.16778282,0.00020768,2]
[317897657,1709983425069,-205.0,0.00020768,2]
[317897658,1709983425079,-4.55443344,0.00020769,2]
[317897659,1709983425091,-213.91167407,0.00020769,2]
[317897660,1709983425100,-1557.85578621,0.00020769,2]
[317897661,1709983479882,-1004.0,0.00020769,2]
[317897662,1709983599566,316.69147609,0.000189,2]
[317897702,1709983832143,-218.46610751,0.0002185,2]
[317897703,1709983832152,-429.16778282,0.00021851,2]
[317897704,1709983832162,-155.11944197,0.00021852,2]
[317897706,1709983832171,-155.11944197,0.00021853,2]
[317897708,1709983832181,-1771.76746028,0.00021853,2]
[317897710,1709983832190,-8483.31914827,0.00021854,2]